[Event "November 21 Late 2023"]
[Site "https://www.chess.com"]
[Date "2023.11.21"]
[Round "10"]
[White "Bugayev, Vladimir"]
[Black "Toniutti, Ezio"]
[Result "1/2-1/2"]
[Board "68"]
[TimeControl "180+1"]
[WhiteFideId "30901480"]
[BlackFideId "113034"]
[WhiteElo "2376"]
[BlackElo "2215"]
[WhiteTeam "USA"]
[BlackTeam "ARG"]
[WhiteClock "0:00:18"]
[BlackClock "0:00:11"]

1. e4 {[%clk 0:03:00]}  e5 {[%clk 0:02:58]} 2. Nf3 {[%clk 0:02:59]}  Nc6 {[%clk 0:02:57]} 3. d4 {[%clk 0:03:00]}  exd4 {[%clk 0:02:56]} 4. Nxd4 {[%clk 0:03:01]}  Bc5 {[%clk 0:02:56]} 5. Nb3 {[%clk 0:03:01]}  Bb6 {[%clk 0:02:56]} 6. Nc3 {[%clk 0:03:02]}  Nf6 {[%clk 0:02:55]} 7. Qe2 {[%clk 0:03:02]}  d6 {[%clk 0:02:54]} 8. Be3 {[%clk 0:03:02]}  Qe7 {[%clk 0:02:54]} 9. f3 {[%clk 0:02:54]}  Be6 {[%clk 0:02:54]} 10. O-O-O {[%clk 0:02:54]}  Nd7 {[%clk 0:02:51]} 11. Qd2 {[%clk 0:02:45]}  O-O {[%clk 0:02:49]} 12. Be2 {[%clk 0:02:23]}  a5 {[%clk 0:02:47]} 13. Bxb6 {[%clk 0:02:19]}  Nxb6 {[%clk 0:02:45]} 14. Nd4 {[%clk 0:02:20]}  Ne5 {[%clk 0:02:40]} 15. a4 {[%clk 0:02:10]}  Rfd8 {[%clk 0:02:30]} 16. f4 {[%clk 0:02:00]}  Nec4 {[%clk 0:02:28]} 17. Bxc4 {[%clk 0:02:00]}  Nxc4 {[%clk 0:02:12]} 18. Qe2 {[%clk 0:02:00]}  Nb6 {[%clk 0:01:57]} 19. f5 {[%clk 0:01:53]}  Bd7 {[%clk 0:01:56]} 20. b3 {[%clk 0:01:52]}  Qe5 {[%clk 0:01:54]} 21. Qd3 {[%clk 0:01:46]}  Re8 {[%clk 0:01:53]} 22. Nf3 {[%clk 0:01:40]}  Qc5 {[%clk 0:01:41]} 23. Kb2 {[%clk 0:01:30]}  Bc6 {[%clk 0:01:40]} 24. Rhe1 {[%clk 0:01:28]}  Qb4 {[%clk 0:01:40]} 25. Qd4 {[%clk 0:01:23]}  Re7 {[%clk 0:01:20]} 26. f6 {[%clk 0:01:15]}  Qxd4 {[%clk 0:01:15]} 27. Nxd4 {[%clk 0:01:07]}  gxf6 {[%clk 0:01:14]} 28. Nxc6 {[%clk 0:01:03]}  bxc6 {[%clk 0:01:13]} 29. Rf1 {[%clk 0:01:02]}  Kg7 {[%clk 0:01:11]} 30. Rf4 {[%clk 0:01:02]}  c5 {[%clk 0:01:04]} 31. Rdf1 {[%clk 0:01:02]}  Re6 {[%clk 0:01:00]} 32. Nb5 {[%clk 0:01:02]}  Rc8 {[%clk 0:00:56]} 33. Na7 {[%clk 0:00:52]}  Rce8 {[%clk 0:00:53]} 34. Nc6 {[%clk 0:00:45]}  Ra8 {[%clk 0:00:41]} 35. Rg4+ {[%clk 0:00:42]}  Kh8 {[%clk 0:00:40]} 36. Rf5 {[%clk 0:00:39]}  c4 {[%clk 0:00:33]} 37. Rh4 {[%clk 0:00:35]}  Rg8 {[%clk 0:00:25]} 38. g3 {[%clk 0:00:31]}  Rg5 {[%clk 0:00:22]} 39. Rh5 {[%clk 0:00:29]}  Rg4 {[%clk 0:00:16]} 40. Nd8 {[%clk 0:00:21]}  Re7 {[%clk 0:00:14]} 41. Rxf6 {[%clk 0:00:18]}  Rgxe4 {[%clk 0:00:14]} 42. Nxf7+ {[%clk 0:00:16]}  Kg7 {[%clk 0:00:13]} 43. Rhf5 {[%clk 0:00:17]}  cxb3 {[%clk 0:00:13]} 44. Ng5 {[%clk 0:00:17]}  Re2 {[%clk 0:00:10]} 45. Kxb3 {[%clk 0:00:17]}  R7e3+ {[%clk 0:00:10]} 46. c3 {[%clk 0:00:17]}  Re1 {[%clk 0:00:09]} 47. Rf7+ {[%clk 0:00:17]}  Kg6 {[%clk 0:00:10]} 48. R7f6+ {[%clk 0:00:18]}  Kg7 {[%clk 0:00:10]} 49. Rf7+ {[%clk 0:00:18]}  Kg6 {[%clk 0:00:11]} 50. R7f6+ {[%clk 0:00:18]}  Kg7 {[%clk 0:00:11]} 1/2-1/2

[Event "November 21 Late 2023"]
[Site "https://www.chess.com"]
[Date "2023.11.21"]
[Round "10"]
[White "topce"]
[Black "Gerbelli Neto, Eduardo"]
[Result "1-0"]
[Board "73"]
[TimeControl "180+1"]
[BlackFideId "2103281"]
[WhiteElo "2444"]
[BlackElo "2178"]
[BlackTeam "BRA"]
[WhiteClock "0:00:31"]
[BlackClock "0:00:02"]

1. c4 {[%clk 0:03:00]}  c5 {[%clk 0:02:59]} 2. Nc3 {[%clk 0:03:01]}  Nf6 {[%clk 0:02:58]} 3. g3 {[%clk 0:02:59]}  d5 {[%clk 0:02:58]} 4. cxd5 {[%clk 0:02:59]}  Nxd5 {[%clk 0:02:59]} 5. Bg2 {[%clk 0:02:59]}  Nc7 {[%clk 0:02:59]} 6. f4 {[%clk 0:02:54]}  Nc6 {[%clk 0:02:56]} 7. Nf3 {[%clk 0:02:55]}  g6 {[%clk 0:02:54]} 8. O-O {[%clk 0:02:47]}  Bg7 {[%clk 0:02:54]} 9. b3 {[%clk 0:02:45]}  O-O {[%clk 0:02:53]} 10. Bb2 {[%clk 0:02:45]}  e5 {[%clk 0:02:22]} 11. Na4 {[%clk 0:02:37]}  e4 {[%clk 0:02:04]} 12. Ne5 {[%clk 0:02:17]}  f5 {[%clk 0:01:53]} 13. Nxc6 {[%clk 0:02:06]}  bxc6 {[%clk 0:01:54]} 14. Bxg7 {[%clk 0:02:02]}  Kxg7 {[%clk 0:01:55]} 15. Qc2 {[%clk 0:02:00]}  Ba6 {[%clk 0:01:40]} 16. Rfe1 {[%clk 0:01:54]}  Bxe2 {[%clk 0:01:19]} 17. Qc3+ {[%clk 0:01:46]}  Qd4+ {[%clk 0:01:16]} 18. Qxd4+ {[%clk 0:01:45]}  cxd4 {[%clk 0:01:17]} 19. Rxe2 {[%clk 0:01:45]}  Nd5 {[%clk 0:01:14]} 20. Nc5 {[%clk 0:01:29]}  Rfe8 {[%clk 0:01:04]} 21. Ree1 {[%clk 0:01:14]}  Nb4 {[%clk 0:01:04]} 22. Rec1 {[%clk 0:01:12]}  Rad8 {[%clk 0:00:47]} 23. Rc4 {[%clk 0:01:05]}  a5 {[%clk 0:00:27]} 24. a3 {[%clk 0:01:02]}  Nd5 {[%clk 0:00:27]} 25. Rxd4 {[%clk 0:01:00]}  Rb8 {[%clk 0:00:20]} 26. Bf1 {[%clk 0:00:57]}  e3 {[%clk 0:00:17]} 27. dxe3 {[%clk 0:00:52]}  Nxe3 {[%clk 0:00:17]} 28. Re1 {[%clk 0:00:48]}  Nc2 {[%clk 0:00:17]} 29. Rd7+ {[%clk 0:00:47]}  Kf6 {[%clk 0:00:15]} 30. Rxe8 {[%clk 0:00:41]}  Rxe8 {[%clk 0:00:16]} 31. Bc4 {[%clk 0:00:41]}  Re7 {[%clk 0:00:09]} 32. Rd6+ {[%clk 0:00:37]}  Kg7 {[%clk 0:00:09]} 33. Rd7 {[%clk 0:00:32]}  Rxd7 {[%clk 0:00:08]} 34. Nxd7 {[%clk 0:00:33]}  Nxa3 {[%clk 0:00:09]} 35. Ne5 {[%clk 0:00:32]}  Nc2 {[%clk 0:00:02]} 36. Nxc6 {[%clk 0:00:31]} 1-0

[Event "November 21 Late 2023"]
[Site "https://www.chess.com"]
[Date "2023.11.21"]
[Round "10"]
[White "Curtis, John"]
[Black "Marcziter, Dmitrii"]
[Result "0-1"]
[Board "74"]
[TimeControl "180+1"]
[WhiteFideId "3200256"]
[BlackFideId "13900765"]
[WhiteElo "2203"]
[BlackElo "2142"]
[WhiteTeam "AUS"]
[BlackTeam "GER"]
[WhiteClock "0:00:13"]
[BlackClock "0:00:16"]

1. d4 {[%clk 0:02:55]}  Nf6 {[%clk 0:02:59]} 2. Nf3 {[%clk 0:02:55]}  g6 {[%clk 0:02:59]} 3. g3 {[%clk 0:02:55]}  Bg7 {[%clk 0:02:59]} 4. Bg2 {[%clk 0:02:55]}  O-O {[%clk 0:03:00]} 5. O-O {[%clk 0:02:54]}  d5 {[%clk 0:03:00]} 6. Ne5 {[%clk 0:02:52]}  c5 {[%clk 0:02:57]} 7. dxc5 {[%clk 0:02:51]}  Qc7 {[%clk 0:02:51]} 8. Nd3 {[%clk 0:02:46]}  Na6 {[%clk 0:02:44]} 9. b4 {[%clk 0:02:37]}  Ne4 {[%clk 0:02:43]} 10. c3 {[%clk 0:02:37]}  Nxc3 {[%clk 0:02:40]} 11. Nxc3 {[%clk 0:02:36]}  Bxc3 {[%clk 0:02:40]} 12. Rb1 {[%clk 0:02:33]}  Rd8 {[%clk 0:02:33]} 13. Qb3 {[%clk 0:02:28]}  d4 {[%clk 0:02:30]} 14. Bd5 {[%clk 0:02:27]}  e6 {[%clk 0:02:27]} 15. Bc4 {[%clk 0:02:23]}  Bd7 {[%clk 0:02:24]} 16. Bb2 {[%clk 0:02:20]}  Bxb2 {[%clk 0:02:21]} 17. Qxb2 {[%clk 0:02:19]}  e5 {[%clk 0:02:19]} 18. Qb3 {[%clk 0:02:17]}  Be8 {[%clk 0:02:19]} 19. Rbc1 {[%clk 0:02:12]}  Nb8 {[%clk 0:02:16]} 20. b5 {[%clk 0:02:12]}  Nd7 {[%clk 0:02:14]} 21. f4 {[%clk 0:02:10]}  e4 {[%clk 0:02:10]} 22. c6 {[%clk 0:02:09]}  Nb6 {[%clk 0:02:00]} 23. Ne5 {[%clk 0:02:04]}  Nxc4 {[%clk 0:01:57]} 24. Qxc4 {[%clk 0:02:04]}  bxc6 {[%clk 0:01:56]} 25. Nxc6 {[%clk 0:01:56]}  Rd6 {[%clk 0:01:47]} 26. Nxd4 {[%clk 0:01:43]}  Qb6 {[%clk 0:01:41]} 27. e3 {[%clk 0:01:44]}  Rad8 {[%clk 0:01:31]} 28. Qc5 {[%clk 0:01:33]}  Qa5 {[%clk 0:01:27]} 29. f5 {[%clk 0:01:24]}  Qd2 {[%clk 0:01:18]} 30. Qc3 {[%clk 0:01:20]}  Qxa2 {[%clk 0:01:16]} 31. fxg6 {[%clk 0:01:19]}  hxg6 {[%clk 0:01:16]} 32. Rf2 {[%clk 0:01:17]}  Qd5 {[%clk 0:01:13]} 33. h4 {[%clk 0:01:11]}  Bxb5 {[%clk 0:01:10]} 34. Qa5 {[%clk 0:01:00]}  a6 {[%clk 0:01:07]} 35. Kg2 {[%clk 0:00:54]}  Bf1+ {[%clk 0:01:05]} 36. Rcxf1 {[%clk 0:00:52]}  Qxa5 {[%clk 0:01:04]} 37. Rxf7 {[%clk 0:00:52]}  R6d7 {[%clk 0:01:01]} 38. R7f6 {[%clk 0:00:51]}  Qh5 {[%clk 0:00:56]} 39. Ne6 {[%clk 0:00:46]}  Rd2+ {[%clk 0:00:45]} 40. Kh3 {[%clk 0:00:42]}  Re8 {[%clk 0:00:39]} 41. Rf8+ {[%clk 0:00:39]}  Rxf8 {[%clk 0:00:39]} 42. Rxf8+ {[%clk 0:00:39]}  Kh7 {[%clk 0:00:39]} 43. Rf7+ {[%clk 0:00:36]}  Kh6 {[%clk 0:00:35]} 44. Nf8 {[%clk 0:00:19]}  Qf5+ {[%clk 0:00:27]} 45. Rxf5 {[%clk 0:00:19]}  gxf5 {[%clk 0:00:27]} 46. g4 {[%clk 0:00:18]}  fxg4+ {[%clk 0:00:26]} 47. Kxg4 {[%clk 0:00:18]}  a5 {[%clk 0:00:27]} 48. Kf4 {[%clk 0:00:19]}  a4 {[%clk 0:00:26]} 49. Kxe4 {[%clk 0:00:20]}  a3 {[%clk 0:00:26]} 50. Ne6 {[%clk 0:00:18]}  a2 {[%clk 0:00:26]} 51. Nd4 {[%clk 0:00:18]}  a1=Q {[%clk 0:00:25]} 52. Nf5+ {[%clk 0:00:19]}  Kh7 {[%clk 0:00:24]} 53. Nd4 {[%clk 0:00:18]}  Qb1+ {[%clk 0:00:24]} 54. Kd5 {[%clk 0:00:16]}  Qh1+ {[%clk 0:00:22]} 55. e4 {[%clk 0:00:16]}  Qxh4 {[%clk 0:00:21]} 56. Ke5 {[%clk 0:00:14]}  Qg3+ {[%clk 0:00:20]} 57. Kd5 {[%clk 0:00:12]}  Qe3 {[%clk 0:00:19]} 58. Ke6 {[%clk 0:00:12]}  Rxd4 {[%clk 0:00:17]} 59. e5 {[%clk 0:00:13]}  Re4 {[%clk 0:00:17]} 60. Kf6 {[%clk 0:00:13]}  Rxe5 {[%clk 0:00:16]} 61. Kf7 {[%clk 0:00:13]}  Qf4# {[%clk 0:00:16]} 0-1

[Event "November 21 Late 2023"]
[Site "https://www.chess.com"]
[Date "2023.11.21"]
[Round "10"]
[White "Vemparala, Nikash"]
[Black "Martins, Vinicius Tine"]
[Result "0-1"]
[Board "76"]
[TimeControl "180+1"]
[WhiteFideId "30960967"]
[BlackFideId "2112884"]
[WhiteElo "2069"]
[BlackElo "2373"]
[WhiteTeam "USA"]
[BlackTeam "BRA"]
[WhiteClock "0:00:00"]
[BlackClock "0:00:22"]

1. e4 {[%clk 0:03:00]}  d6 {[%clk 0:02:59]} 2. d4 {[%clk 0:03:00]}  Nf6 {[%clk 0:02:57]} 3. Nc3 {[%clk 0:02:58]}  g6 {[%clk 0:02:57]} 4. f3 {[%clk 0:02:57]}  Bg7 {[%clk 0:02:56]} 5. Be3 {[%clk 0:02:57]}  O-O {[%clk 0:02:56]} 6. Qd2 {[%clk 0:02:57]}  Nbd7 {[%clk 0:02:44]} 7. O-O-O {[%clk 0:02:56]}  e5 {[%clk 0:02:43]} 8. h4 {[%clk 0:02:55]}  exd4 {[%clk 0:02:39]} 9. Bxd4 {[%clk 0:02:55]}  Ne5 {[%clk 0:02:36]} 10. g4 {[%clk 0:02:49]}  Nc6 {[%clk 0:02:29]} 11. Be3 {[%clk 0:02:45]}  Be6 {[%clk 0:02:01]} 12. h5 {[%clk 0:02:30]}  Re8 {[%clk 0:01:57]} 13. hxg6 {[%clk 0:02:27]}  hxg6 {[%clk 0:01:56]} 14. Bh6 {[%clk 0:02:25]}  Bh8 {[%clk 0:01:44]} 15. Nh3 {[%clk 0:01:43]}  Nh7 {[%clk 0:01:38]} 16. Nf4 {[%clk 0:01:37]}  Qf6 {[%clk 0:01:32]} 17. Qh2 {[%clk 0:01:14]}  g5 {[%clk 0:00:59]} 18. Nh5 {[%clk 0:00:58]}  Qxh6 {[%clk 0:00:57]} 19. Nf6+ {[%clk 0:00:57]}  Qxf6 {[%clk 0:00:55]} 20. Qxh7+ {[%clk 0:00:57]}  Kf8 {[%clk 0:00:54]} 21. Qxh8+ {[%clk 0:00:57]}  Qxh8 {[%clk 0:00:54]} 22. Rxh8+ {[%clk 0:00:58]}  Kg7 {[%clk 0:00:54]} 23. Rh5 {[%clk 0:00:55]}  f6 {[%clk 0:00:51]} 24. Nb5 {[%clk 0:00:46]}  Rac8 {[%clk 0:00:47]} 25. Be2 {[%clk 0:00:42]}  a6 {[%clk 0:00:45]} 26. Nc3 {[%clk 0:00:41]}  Rh8 {[%clk 0:00:43]} 27. Rdh1 {[%clk 0:00:40]}  Rxh5 {[%clk 0:00:42]} 28. Rxh5 {[%clk 0:00:40]}  Ne5 {[%clk 0:00:42]} 29. b3 {[%clk 0:00:30]}  Ng6 {[%clk 0:00:42]} 30. Kd2 {[%clk 0:00:27]}  Nh4 {[%clk 0:00:40]} 31. Bc4 {[%clk 0:00:21]}  Nxf3+ {[%clk 0:00:34]} 32. Ke3 {[%clk 0:00:16]}  Bxg4 {[%clk 0:00:34]} 33. Rh1 {[%clk 0:00:14]}  Ne5 {[%clk 0:00:35]} 34. Bd5 {[%clk 0:00:13]}  c6 {[%clk 0:00:34]} 35. Bc4 {[%clk 0:00:13]}  Rh8 {[%clk 0:00:30]} 36. Rxh8 {[%clk 0:00:13]}  Kxh8 {[%clk 0:00:29]} 37. Ne2 {[%clk 0:00:12]}  Bxe2 {[%clk 0:00:29]} 38. Bxe2 {[%clk 0:00:12]}  Kg7 {[%clk 0:00:29]} 39. c4 {[%clk 0:00:11]}  Kg6 {[%clk 0:00:26]} 40. Kf2 {[%clk 0:00:11]}  Kf7 {[%clk 0:00:24]} 41. Kg3 {[%clk 0:00:11]}  Ke7 {[%clk 0:00:24]} 42. Bh5 {[%clk 0:00:09]}  Ke6 {[%clk 0:00:23]} 43. Be2 {[%clk 0:00:07]}  Nd7 {[%clk 0:00:22]} 44. Bg4+ {[%clk 0:00:07]}  Ke7 {[%clk 0:00:23]} 45. Be2 {[%clk 0:00:07]}  a5 {[%clk 0:00:22]} 46. Kg4 {[%clk 0:00:06]}  Ke6 {[%clk 0:00:22]} 47. Kg3 {[%clk 0:00:06]}  Ke5 {[%clk 0:00:22]} 48. Kf3 {[%clk 0:00:04]}  Nc5 {[%clk 0:00:22]} 49. Ke3 {[%clk 0:00:03]}  Nxe4 {[%clk 0:00:22]} 50. Bf3 {[%clk 0:00:00]}  f5 {[%clk 0:00:22]} 0-1

[Event "November 21 Late 2023"]
[Site "https://www.chess.com"]
[Date "2023.11.21"]
[Round "10"]
[White "Kostiukov, Alexandr"]
[Black "Dias, Joao Batista"]
[Result "1-0"]
[Board "77"]
[TimeControl "180+1"]
[WhiteFideId "14108100"]
[BlackFideId "2108240"]
[WhiteElo "2144"]
[BlackElo "1907"]
[WhiteTeam "UKR"]
[BlackTeam "BRA"]
[WhiteClock "0:01:29"]
[BlackClock "0:02:08"]

1. g3 {[%clk 0:02:02]}  d5 {[%clk 0:02:58]} 2. Bg2 {[%clk 0:02:02]}  c6 {[%clk 0:02:59]} 3. d3 {[%clk 0:02:02]}  e5 {[%clk 0:02:59]} 4. e4 {[%clk 0:02:03]}  d4 {[%clk 0:02:58]} 5. f4 {[%clk 0:02:02]}  Bd6 {[%clk 0:02:48]} 6. Nf3 {[%clk 0:02:02]}  Nd7 {[%clk 0:02:47]} 7. O-O {[%clk 0:02:01]}  Qe7 {[%clk 0:02:46]} 8. a4 {[%clk 0:02:00]}  f6 {[%clk 0:02:45]} 9. Na3 {[%clk 0:01:59]}  Nh6 {[%clk 0:02:38]} 10. fxe5 {[%clk 0:01:53]}  Bxe5 {[%clk 0:02:35]} 11. Bxh6 {[%clk 0:01:53]}  gxh6 {[%clk 0:02:35]} 12. Nc4 {[%clk 0:01:52]}  O-O {[%clk 0:02:33]} 13. Nfxe5 {[%clk 0:01:49]}  fxe5 {[%clk 0:02:33]} 14. Qh5 {[%clk 0:01:44]}  Qg5 {[%clk 0:02:26]} 15. Rxf8+ {[%clk 0:01:41]}  Kxf8 {[%clk 0:02:25]} 16. Rf1+ {[%clk 0:01:41]}  Kg8 {[%clk 0:02:16]} 17. Qe8+ {[%clk 0:01:31]}  Kg7 {[%clk 0:02:14]} 18. Rf7+ {[%clk 0:01:31]}  Kg6 {[%clk 0:02:11]} 19. Qg8+ {[%clk 0:01:31]}  Kh5 {[%clk 0:02:08]} 20. Bf3+ {[%clk 0:01:29]} 1-0

[Event "November 21 Late 2023"]
[Site "https://www.chess.com"]
[Date "2023.11.21"]
[Round "10"]
[White "hristos03"]
[Black "Herman, Matthew"]
[Result "1-0"]
[Board "79"]
[TimeControl "180+1"]
[BlackFideId "2028964"]
[WhiteElo "2380"]
[BlackElo "2368"]
[BlackTeam "USA"]
[WhiteClock "0:00:05"]
[BlackClock "0:00:00"]

1. e4 {[%clk 0:02:59]}  e5 {[%clk 0:03:00]} 2. Nf3 {[%clk 0:02:59]}  Nc6 {[%clk 0:03:00]} 3. Bb5 {[%clk 0:02:59]}  a6 {[%clk 0:03:01]} 4. Ba4 {[%clk 0:02:59]}  Nf6 {[%clk 0:03:01]} 5. O-O {[%clk 0:02:59]}  Be7 {[%clk 0:03:01]} 6. Re1 {[%clk 0:02:59]}  b5 {[%clk 0:03:02]} 7. Bb3 {[%clk 0:02:59]}  O-O {[%clk 0:03:02]} 8. a4 {[%clk 0:02:59]}  b4 {[%clk 0:03:02]} 9. a5 {[%clk 0:02:59]}  d6 {[%clk 0:03:02]} 10. d3 {[%clk 0:03:00]}  h6 {[%clk 0:03:01]} 11. h3 {[%clk 0:03:00]}  Be6 {[%clk 0:03:01]} 12. Nbd2 {[%clk 0:02:59]}  Qd7 {[%clk 0:02:54]} 13. Bxe6 {[%clk 0:02:55]}  fxe6 {[%clk 0:02:54]} 14. Nc4 {[%clk 0:02:55]}  Rf7 {[%clk 0:02:42]} 15. c3 {[%clk 0:02:45]}  bxc3 {[%clk 0:02:35]} 16. bxc3 {[%clk 0:02:45]}  Raf8 {[%clk 0:02:36]} 17. d4 {[%clk 0:02:42]}  exd4 {[%clk 0:02:26]} 18. cxd4 {[%clk 0:02:42]}  Nd8 {[%clk 0:02:13]} 19. Rb1 {[%clk 0:02:14]}  Qc6 {[%clk 0:02:00]} 20. Qd3 {[%clk 0:02:12]}  Qa8 {[%clk 0:01:32]} 21. Bd2 {[%clk 0:01:49]}  Nxe4 {[%clk 0:00:55]} 22. Qxe4 {[%clk 0:01:02]}  Qxe4 {[%clk 0:00:55]} 23. Rxe4 {[%clk 0:00:59]}  d5 {[%clk 0:00:56]} 24. Re2 {[%clk 0:00:48]}  dxc4 {[%clk 0:00:55]} 25. Ne5 {[%clk 0:00:48]}  Rf5 {[%clk 0:00:47]} 26. g4 {[%clk 0:00:42]}  Rxe5 {[%clk 0:00:35]} 27. Rxe5 {[%clk 0:00:35]}  Bf6 {[%clk 0:00:29]} 28. Re4 {[%clk 0:00:30]}  Nc6 {[%clk 0:00:29]} 29. Bc3 {[%clk 0:00:26]}  Kf7 {[%clk 0:00:28]} 30. Rb7 {[%clk 0:00:23]}  Rc8 {[%clk 0:00:26]} 31. Kg2 {[%clk 0:00:16]}  Ne7 {[%clk 0:00:20]} 32. Ra7 {[%clk 0:00:08]}  Nd5 {[%clk 0:00:21]} 33. Be1 {[%clk 0:00:08]}  c3 {[%clk 0:00:17]} 34. Rxa6 {[%clk 0:00:08]}  c2 {[%clk 0:00:17]} 35. Rc6 {[%clk 0:00:08]}  Bg5 {[%clk 0:00:09]} 36. Rxc2 {[%clk 0:00:08]}  Nf4+ {[%clk 0:00:07]} 37. Kh2 {[%clk 0:00:08]}  Rb8 {[%clk 0:00:07]} 38. Bd2 {[%clk 0:00:07]}  Nd5 {[%clk 0:00:06]} 39. Bxg5 {[%clk 0:00:07]}  hxg5 {[%clk 0:00:07]} 40. Ree2 {[%clk 0:00:03]}  Rb4 {[%clk 0:00:06]} 41. a6 {[%clk 0:00:02]}  Rxd4 {[%clk 0:00:05]} 42. Ra2 {[%clk 0:00:03]}  Rd3 {[%clk 0:00:03]} 43. a7 {[%clk 0:00:03]}  Nf4 {[%clk 0:00:03]} 44. f3 {[%clk 0:00:02]}  Rxf3 {[%clk 0:00:03]} 45. a8=Q {[%clk 0:00:03]}  Rxh3+ {[%clk 0:00:04]} 46. Kg1 {[%clk 0:00:03]}  Rg3+ {[%clk 0:00:05]} 47. Kf2 {[%clk 0:00:03]}  Rxg4 {[%clk 0:00:04]} 48. Ra7 {[%clk 0:00:02]}  Kg6 {[%clk 0:00:04]} 49. Rxc7 {[%clk 0:00:02]}  Rh4 {[%clk 0:00:04]} 50. Qe4+ {[%clk 0:00:02]}  Kf6 {[%clk 0:00:04]} 51. Rc8 {[%clk 0:00:02]}  Rh2+ {[%clk 0:00:04]} 52. Kg3 {[%clk 0:00:02]}  Rh3+ {[%clk 0:00:04]} 53. Kf2 {[%clk 0:00:03]}  Rh2+ {[%clk 0:00:04]} 54. Ke1 {[%clk 0:00:03]}  Rh3 {[%clk 0:00:02]} 55. Qe5+ {[%clk 0:00:03]}  Kg6 {[%clk 0:00:02]} 56. Qe4+ {[%clk 0:00:03]}  Kh5 {[%clk 0:00:03]} 57. Rh8+ {[%clk 0:00:03]}  Kg4 {[%clk 0:00:03]} 58. Rxh3 {[%clk 0:00:04]}  Kxh3 {[%clk 0:00:03]} 59. Re3+ {[%clk 0:00:05]}  Kg4 {[%clk 0:00:04]} 60. Qf3+ {[%clk 0:00:05]}  Kf5 {[%clk 0:00:04]} 61. Re4 {[%clk 0:00:05]}  e5 {[%clk 0:00:04]} 62. Rxf4+ {[%clk 0:00:05]}  exf4 {[%clk 0:00:05]} 63. Kf2 {[%clk 0:00:05]}  g4 {[%clk 0:00:06]} 64. Qd5+ {[%clk 0:00:06]}  Kg6 {[%clk 0:00:06]} 65. Qe6+ {[%clk 0:00:06]}  Kg5 {[%clk 0:00:07]} 66. Qe7+ {[%clk 0:00:06]}  Kf5 {[%clk 0:00:07]} 67. Kg2 {[%clk 0:00:06]}  g6 {[%clk 0:00:06]} 68. Qd6 {[%clk 0:00:06]}  g5 {[%clk 0:00:04]} 69. Qd5+ {[%clk 0:00:06]}  Kg6 {[%clk 0:00:04]} 70. Qe6+ {[%clk 0:00:06]}  Kh5 {[%clk 0:00:04]} 71. Qf6 {[%clk 0:00:05]}  g3 {[%clk 0:00:02]} 72. Kf3 {[%clk 0:00:04]}  g4+ {[%clk 0:00:00]} 73. Kxf4 {[%clk 0:00:05]} 1-0

[Event "November 21 Late 2023"]
[Site "https://www.chess.com"]
[Date "2023.11.21"]
[Round "10"]
[White "Romero Ruscalleda, Josep"]
[Black "Omariev, Maksim"]
[Result "1-0"]
[Board "80"]
[TimeControl "180+1"]
[WhiteFideId "2231859"]
[BlackFideId "4193423"]
[WhiteElo "2183"]
[BlackElo "2498"]
[WhiteTeam "ESP"]
[BlackTeam "RUS"]
[WhiteClock "0:00:38"]
[BlackClock "0:00:00"]

1. e4 {[%clk 0:03:00]}  c5 {[%clk 0:03:00]} 2. c3 {[%clk 0:03:00]}  Nf6 {[%clk 0:03:00]} 3. e5 {[%clk 0:03:00]}  Nd5 {[%clk 0:03:00]} 4. Nf3 {[%clk 0:03:00]}  d6 {[%clk 0:02:59]} 5. Bc4 {[%clk 0:03:00]}  e6 {[%clk 0:02:59]} 6. d4 {[%clk 0:02:59]}  cxd4 {[%clk 0:03:00]} 7. cxd4 {[%clk 0:02:59]}  Nc6 {[%clk 0:02:58]} 8. O-O {[%clk 0:02:57]}  Be7 {[%clk 0:02:58]} 9. Bd2 {[%clk 0:02:56]}  O-O {[%clk 0:02:56]} 10. Qe2 {[%clk 0:02:56]}  a6 {[%clk 0:02:56]} 11. Nc3 {[%clk 0:02:53]}  Nxc3 {[%clk 0:02:55]} 12. Bxc3 {[%clk 0:02:53]}  b5 {[%clk 0:02:46]} 13. Bd3 {[%clk 0:02:52]}  Bb7 {[%clk 0:02:43]} 14. Rac1 {[%clk 0:02:48]}  Rc8 {[%clk 0:02:39]} 15. Qe4 {[%clk 0:02:36]}  g6 {[%clk 0:02:39]} 16. Qf4 {[%clk 0:02:36]}  Nb8 {[%clk 0:02:07]} 17. Rfd1 {[%clk 0:02:32]}  Bd5 {[%clk 0:01:56]} 18. Bb1 {[%clk 0:02:14]}  Nc6 {[%clk 0:01:53]} 19. g3 {[%clk 0:02:08]}  b4 {[%clk 0:01:50]} 20. Bd2 {[%clk 0:01:59]}  Bxf3 {[%clk 0:01:45]} 21. Qxf3 {[%clk 0:01:58]}  Nxd4 {[%clk 0:01:46]} 22. Qe4 {[%clk 0:01:51]}  dxe5 {[%clk 0:01:41]} 23. Bh6 {[%clk 0:01:44]}  Rxc1 {[%clk 0:01:37]} 24. Rxc1 {[%clk 0:01:41]}  Re8 {[%clk 0:01:33]} 25. Kg2 {[%clk 0:01:41]}  Qd5 {[%clk 0:01:29]} 26. Rc7 {[%clk 0:01:38]}  a5 {[%clk 0:01:02]} 27. f3 {[%clk 0:01:29]}  a4 {[%clk 0:00:40]} 28. Bd3 {[%clk 0:01:21]}  Bd6 {[%clk 0:00:08]} 29. Rd7 {[%clk 0:01:12]}  Qxe4 {[%clk 0:00:08]} 30. Bxe4 {[%clk 0:01:12]}  Bc5 {[%clk 0:00:07]} 31. Rc7 {[%clk 0:01:04]}  Bd6 {[%clk 0:00:06]} 32. Ra7 {[%clk 0:01:01]}  a3 {[%clk 0:00:05]} 33. bxa3 {[%clk 0:01:00]}  bxa3 {[%clk 0:00:06]} 34. Rd7 {[%clk 0:00:57]}  Bb4 {[%clk 0:00:06]} 35. f4 {[%clk 0:00:54]}  f5 {[%clk 0:00:05]} 36. Bd3 {[%clk 0:00:48]}  Nc6 {[%clk 0:00:03]} 37. Bb5 {[%clk 0:00:45]}  Nd4 {[%clk 0:00:02]} 38. Rxd4 {[%clk 0:00:40]}  exd4 {[%clk 0:00:01]} 39. Bxe8 {[%clk 0:00:40]}  Bc3 {[%clk 0:00:01]} 40. Kf3 {[%clk 0:00:39]}  d3 {[%clk 0:00:01]} 41. Ke3 {[%clk 0:00:38]}  d2 {[%clk 0:00:00]} 42. Ke2 {[%clk 0:00:38]} 1-0